bitfinex/quotes_BTCUSD_20251230
["timestamp","ask_amount","ask_price","bid_price","bid_amount"]
[1767118482893,0.01131721,88361.0,88347.0,0.289039]
[1767118483918,0.01131708,88362.0,88347.0,0.289039]
[1767118484686,0.01131721,88361.0,88347.0,0.27772]
[1767118485492,0.01131733,88360.0,88347.0,0.27772]
[1767118485915,0.01131721,88361.0,88347.0,0.27772]
[1767118486234,0.01131708,88362.0,88348.0,0.01131887]
[1767118487079,0.30113695,88363.0,88348.0,0.01131887]
[1767118487317,0.01131721,88361.0,88350.0,0.5503638]
[1767118487531,0.02267708,88362.0,88351.0,0.28726]
[1767118488233,0.01136,88362.0,88348.0,0.01131887]
[1767118488642,0.02267708,88362.0,88347.0,0.011319]
[1767118489056,0.01136,88362.0,88348.0,0.01131887]
[1767118489660,0.02267708,88362.0,88347.0,0.011319]
[1767118489815,0.02267708,88362.0,88348.0,0.01131887]
[1767118490674,0.01136,88362.0,88348.0,0.01131887]
[1767118491659,0.02267708,88362.0,88347.0,0.011319]
[1767118491828,0.02267708,88362.0,88348.0,0.01131887]
[1767118492479,0.02267708,88362.0,88347.0,0.011319]
[1767118492903,0.5503638,88360.0,88346.0,0.30993913]
[1767118493052,0.5503638,88360.0,88347.0,0.011319]
[1767118493437,0.5503638,88360.0,88348.0,0.01131887]
[1767118493749,0.5503638,88360.0,88347.0,0.011319]
[1767118493973,0.5503638,88360.0,88346.0,0.30993913]
[1767118494203,0.5503638,88360.0,88347.0,0.011319]
[1767118495256,0.5503638,88360.0,88348.0,0.01131887]
[1767118496363,0.5503638,88360.0,88349.0,0.01131874]
[1767118496546,0.5503638,88360.0,88348.0,0.01131887]
[1767118497199,0.5503638,88360.0,88347.0,0.011319]
[1767118497404,0.5503638,88360.0,88348.0,0.01131887]
[1767118497606,0.5503638,88360.0,88347.0,0.011319]
[1767118499915,0.5503638,88360.0,88349.0,0.01131874]
[1767118500332,0.01136,88362.0,88350.0,0.5503638]
[1767118500537,0.02267708,88362.0,88350.0,0.5503638]
[1767118500735,0.01131721,88361.0,88350.0,0.5503638]
[1767118500935,0.02267708,88362.0,88347.0,0.011319]
[1767118501140,0.01131721,88361.0,88347.0,0.011319]
[1767118501346,0.01131721,88361.0,88346.0,0.36653446]
[1767118501522,0.27075,88360.0,88346.0,0.02267913]
[1767118501727,0.83243113,88360.0,88346.0,0.01136]
[1767118502149,0.83243113,88360.0,88346.0,0.02267913]
[1767118502590,0.28206746,88359.0,88346.0,0.01136]
[1767118502885,0.27075,88359.0,88346.0,0.01136]
[1767118503870,0.28206746,88359.0,88346.0,0.01136]
[1767118504301,0.01131759,88358.0,88346.0,0.01136]
[1767118504642,0.28206746,88359.0,88346.0,0.01136]
[1767118507267,0.01131772,88357.0,88346.0,0.01136]
[1767118507493,0.01131759,88358.0,88346.0,0.01136]
[1767118507914,0.01131772,88357.0,88346.0,0.01136]
[1767118508124,0.0113181,88354.0,88346.0,0.01136]
[1767118508293,0.0113181,88354.0,88339.0,6.434e-05]
[1767118508294,0.000259,88346.0,88339.0,6.434e-05]
[1767118508644,0.000259,88346.0,88341.0,0.01131977]
[1767118508872,0.01136,88353.0,88341.0,0.27296]
[1767118509188,0.01131836,88352.0,88339.0,6.434e-05]
[1767118509393,0.01136,88351.0,88339.0,6.434e-05]
[1767118510512,0.28211,88351.0,88339.0,6.434e-05]
[1767118510720,0.29342849,88351.0,88339.0,6.434e-05]
[1767118510912,0.28211,88351.0,88339.0,6.434e-05]
[1767118511234,0.29342849,88351.0,88339.0,6.434e-05]
[1767118511433,0.28211,88351.0,88339.0,6.434e-05]
[1767118511848,0.27075,88351.0,88339.0,6.434e-05]
[1767118512075,0.01136,88350.0,88340.0,0.0113199]
[1767118512480,0.01136,88350.0,88339.0,0.01138436]
[1767118513011,0.01136,88350.0,88340.0,0.0113199]
[1767118513383,0.01131797,88355.0,88341.0,0.01131977]
[1767118513587,0.01136,88354.0,88341.0,0.01131977]
[1767118514164,0.01136,88354.0,88342.0,0.01131964]
[1767118515209,0.01136,88354.0,88343.0,0.01131951]
[1767118515424,0.27075,88357.0,88343.0,0.01131951]
[1767118515628,0.01131721,88361.0,88342.0,0.01131964]
[1767118515629,0.01136,88360.0,88354.0,0.00029]
[1767118515805,0.01131644,88367.0,88354.0,0.00029]
[1767118516012,0.01136,88366.0,88360.0,0.00055]
[1767118516217,0.0868664,88378.0,88360.0,0.00055]
[1767118516218,0.01131452,88382.0,88367.0,0.01131644]
[1767118516442,0.04697673,88383.0,88367.0,0.31930644]
[1767118516678,0.02267439,88383.0,88367.0,0.31930644]
[1767118516881,0.02267439,88383.0,88367.0,0.30799]
[1767118517024,0.01131452,88382.0,88367.0,0.30799]
[1767118517412,0.0005284,88379.0,88367.0,0.30799]
[1767118517640,0.0005284,88379.0,88367.0,0.31930644]
[1767118518104,0.0005284,88379.0,88367.0,0.30799]
[1767118519480,0.0005284,88379.0,88367.0,0.31930644]
[1767118521213,0.0005284,88379.0,88367.0,0.29663]
[1767118521404,0.0005284,88379.0,88367.0,0.30794644]
[1767118521907,0.0005284,88379.0,88367.0,0.29663]
[1767118522110,0.0005284,88379.0,88367.0,0.30794644]
[1767118523202,0.0005284,88379.0,88367.0,0.29663]
[1767118523323,0.01131554,88374.0,88362.0,0.01136]
[1767118523526,0.01131554,88374.0,88362.0,0.30799]
[1767118523926,0.0118433,88379.0,88362.0,0.30799]
[1767118524305,0.01131503,88378.0,88364.0,0.29663]
[1767118524444,0.0118433,88379.0,88364.0,0.30794682]
[1767118524639,0.0118433,88379.0,88364.0,0.29663]
[1767118524941,0.01131541,88375.0,88364.0,0.29663]
[1767118526183,0.01131528,88376.0,88364.0,0.29663]
[1767118526382,0.01131541,88375.0,88364.0,0.29663]
[1767118526744,0.01131528,88376.0,88364.0,0.29663]
[1767118527216,0.01131516,88377.0,88364.0,0.29663]
[1767118528399,0.01131541,88375.0,88362.0,0.01136]
[1767118528601,0.0113158,88372.0,88355.0,0.05658988]
[1767118528805,0.22682819,88379.0,88360.0,0.56181093]
[1767118528806,0.0005284,88379.0,88360.0,0.56181093]
[1767118529020,0.01131541,88375.0,88361.0,0.01136]
[1767118529210,0.34479066,88378.0,88361.0,0.02267721]
[1767118529523,0.01131528,88376.0,88361.0,0.01136]
[1767118529729,0.01131541,88375.0,88361.0,0.01136]
[1767118529941,0.01131516,88377.0,88361.0,0.01136]
[1767118530164,0.0118433,88379.0,88375.0,0.001099]
[1767118530318,0.0005284,88379.0,88375.0,0.001099]
[1767118530531,0.0005284,88379.0,88366.0,0.30794656]
[1767118530742,0.0005284,88379.0,88369.0,0.5504936]
[1767118531781,0.0005284,88379.0,88372.0,0.05657837]
[1767118532004,0.05656794,88390.0,88375.0,0.29663]
[1767118532220,0.01131375,88388.0,88375.0,0.30799]
[1767118532429,0.01131375,88388.0,88375.0,0.01136]
[1767118532872,0.01131388,88387.0,88375.0,0.01136]
[1767118533083,0.2769,88386.0,88375.0,0.01136]
[1767118534002,0.01156286,88389.0,88375.0,0.01136]
[1767118534003,0.00024924,88389.0,88375.0,0.02267541]
[1767118534211,0.00024924,88389.0,88377.0,0.30794516]
[1767118534416,0.00024924,88389.0,88378.0,0.01131503]
[1767118534839,0.00024924,88389.0,88377.0,0.30794516]
[1767118535011,0.00024924,88389.0,88378.0,0.01131503]
[1767118535624,0.00024924,88389.0,88381.0,0.01131464]
[1767118535848,0.00024924,88389.0,88380.0,0.01131477]
[1767118536457,2.4e-07,88389.0,88381.0,0.30794464]
[1767118536830,2.4e-07,88389.0,88381.0,0.29663]
[1767118537214,2.4e-07,88389.0,88381.0,0.30794464]
[1767118537423,2.4e-07,88389.0,88383.0,0.29663]
[1767118538698,2.4e-07,88389.0,88383.0,0.30794439]
[1767118539092,2.4e-07,88389.0,88385.0,0.29663]
[1767118539306,0.01136,88401.0,88385.0,0.29663]
[1767118539307,0.00816663,88401.0,88390.0,0.29663]
[1767118539634,0.00816663,88401.0,88387.0,0.01131388]
[1767118540449,0.00816663,88401.0,88386.0,0.06788342]
[1767118540450,0.01947871,88401.0,88386.0,0.011314]
[1767118540682,0.2769,88400.0,88383.0,0.30794439]
[1767118541278,0.2769,88400.0,88384.0,0.06788558]
[1767118541707,0.06786985,88405.0,88387.0,0.30794388]
[1767118541910,0.34477238,88402.0,88387.0,0.30794388]
[1767118542312,0.01131208,88401.0,88387.0,0.29663]
[1767118542657,0.01131221,88400.0,88387.0,0.29663]
[1767118542806,0.28821208,88401.0,88387.0,0.29663]
[1767118542991,0.01131221,88400.0,88387.0,0.29663]
[1767118543189,0.28821234,88399.0,88384.0,0.01131426]
[1767118543625,0.2769,88399.0,88386.0,0.011314]
[1767118544144,0.2769,88399.0,88387.0,0.01131388]
[1767118545385,0.000227,88387.0,88385.0,0.29663]
[1767118545838,0.28821234,88399.0,88385.0,0.29663]
[1767118546145,0.2769,88399.0,88386.0,0.011314]
[1767118546901,0.2769,88399.0,88385.0,0.30794413]
[1767118547122,0.28821234,88399.0,88385.0,0.01131413]
[1767118547319,0.2769,88399.0,88385.0,0.01131413]
[1767118547729,0.2769,88399.0,88386.0,0.011314]
[1767118548535,0.2769,88399.0,88385.0,0.29878413]
[1767118548734,0.2769,88399.0,88386.0,0.011314]
[1767118549353,0.2769,88399.0,88385.0,0.29878413]
[1767118550726,0.01131208,88401.0,88385.0,0.01131413]
[1767118550998,0.01131221,88400.0,88386.0,0.011314]
[1767118551148,0.29718221,88400.0,88385.0,0.01131413]
[1767118551351,0.01131234,88399.0,88384.0,0.29878426]
[1767118551594,0.01131234,88399.0,88385.0,0.01131413]
[1767118551746,0.29718221,88400.0,88385.0,0.01131413]
[1767118552684,0.01131234,88399.0,88384.0,0.28747]
[1767118552914,0.01131234,88399.0,88384.0,0.29878426]
[1767118555482,0.01131247,88398.0,88384.0,0.28747]
[1767118555679,0.01131247,88398.0,88384.0,0.29878426]
[1767118556687,0.0113126,88397.0,88384.0,0.28747]
[1767118556888,0.000227,88384.0,88382.0,0.01136]
[1767118557062,0.000227,88384.0,88366.0,0.22632972]
[1767118557063,0.05712296,88382.0,88370.0,0.0002178]
[1767118557314,0.00055,88382.0,88373.0,0.28747]
[1767118557514,0.00055,88382.0,88373.0,0.29878567]
[1767118557636,0.01131362,88389.0,88374.0,0.01131554]
[1767118557828,0.01131362,88389.0,88373.0,0.29878567]
[1767118558032,0.28587,88390.0,88377.0,0.01131516]
[1767118558234,0.28587,88390.0,88374.0,0.29878554]
[1767118558235,0.01131298,88394.0,88378.0,0.29883]
[1767118558438,0.35374719,88395.0,88378.0,0.29883]
[1767118558439,0.28587,88395.0,88380.0,0.5504936]
[1767118558660,0.29723,88401.0,88384.0,0.05657091]
[1767118558863,0.29723,88401.0,88387.0,0.01131388]
[1767118559145,0.30854208,88401.0,88386.0,0.298784]
[1767118559366,0.29718208,88401.0,88386.0,0.298784]
[1767118559918,0.28587,88401.0,88387.0,0.01131388]
[1767118560279,0.28587,88401.0,88388.0,0.01131375]
[1767118560483,0.28587,88401.0,88387.0,0.01131388]
[1767118560979,0.28587,88401.0,88388.0,0.01131375]
[1767118561182,0.29718208,88401.0,88386.0,0.298784]
[1767118561666,0.06787454,88399.0,88386.0,0.28747]
[1767118561846,0.06787454,88399.0,88385.0,0.01136]
[1767118561847,0.29254247,88398.0,88385.0,0.01136]
[1767118561988,0.28123,88393.0,88385.0,0.01136]
[1767118562591,0.28123,88393.0,88385.0,0.02267413]
[1767118562793,0.28123,88393.0,88386.0,0.011314]
[1767118563093,0.28123,88399.0,88385.0,0.02267413]
[1767118563317,0.28123,88399.0,88385.0,0.01136]
[1767118563744,0.28123,88399.0,88386.0,0.011314]
[1767118564218,0.28123,88399.0,88385.0,0.02267413]
[1767118564219,0.28123,88399.0,88385.0,0.01136]
[1767118564443,0.28123,88397.0,88385.0,0.01136]
[1767118564666,0.28123,88397.0,88385.0,0.02267413]
[1767118565038,0.28123,88397.0,88385.0,0.01136]
[1767118565241,0.00055,88385.0,88377.0,0.01131516]
[1767118565480,0.00055,88385.0,88381.0,0.01131464]
[1767118565669,0.00055,88385.0,88382.0,0.01131452]
[1767118565869,0.28123,88395.0,88383.0,0.01131439]
[1767118566072,0.28123,88395.0,88381.0,0.01131464]
[1767118566472,0.28123,88395.0,88383.0,0.01131439]
[1767118567146,0.28123,88395.0,88382.0,0.01131452]
[1767118567352,0.28123,88395.0,88384.0,0.01131426]
[1767118567548,0.28123,88395.0,88385.0,0.01136]
[1767118567734,0.5504936,88400.0,88385.0,0.02267413]
[1767118567940,0.29254208,88401.0,88386.0,0.011314]
[1767118568281,0.01131221,88400.0,88385.0,0.02267413]
[1767118568432,0.28123,88401.0,88385.0,0.02267413]
[1767118568637,0.84252883,88400.0,88385.0,0.02267413]
[1767118568840,0.84252883,88400.0,88385.0,0.01136]
[1767118569041,0.01131234,88399.0,88385.0,0.01136]
[1767118569242,0.337793,88397.0,88385.0,0.01136]
[1767118569447,0.28123,88395.0,88385.0,0.01136]
[1767118570335,0.0113126,88397.0,88385.0,0.01136]
[1767118570774,0.29254247,88398.0,88385.0,0.01136]
[1767118571178,0.0113126,88397.0,88385.0,0.01136]
[1767118571831,0.01131272,88396.0,88385.0,0.01136]
[1767118572189,0.01131311,88393.0,88385.0,0.01081]
[1767118572394,0.28123,88394.0,88385.0,0.01081]
[1767118574556,0.0113126,88397.0,88385.0,0.01081]
[1767118576039,0.01131272,88396.0,88385.0,0.01081]
[1767118576395,0.0113126,88397.0,88385.0,0.01081]
[1767118576864,0.01131272,88396.0,88385.0,0.01081]
[1767118578453,0.01131285,88395.0,88385.0,0.01081]
[1767118578630,0.01131272,88396.0,88385.0,0.01081]
[1767118578835,0.0113126,88397.0,88385.0,0.01081]
[1767118580918,0.29254247,88398.0,88385.0,0.01081]
[1767118581337,0.56129883,88400.0,88385.0,0.02212413]
[1767118581592,0.01131106,88409.0,88400.0,0.00055]
[1767118581792,0.01136,88406.0,88400.0,0.00055]
[1767118582201,0.01136,88406.0,88394.0,0.02267298]
[1767118582417,0.01136,88406.0,88394.0,0.01136]
[1767118582614,0.01136,88406.0,88394.0,0.02267298]
[1767118583279,0.0001404,88408.0,88397.0,0.29984]
[1767118583484,0.0001404,88408.0,88406.0,0.000549]
[1767118583905,0.0001404,88408.0,88401.0,0.01136]
[1767118591651,4e-07,88408.0,88402.0,0.29984]
[1767118595833,4e-07,88408.0,88401.0,0.01136]
[1767118602388,0.01131042,88414.0,88401.0,0.01136]
[1767118602537,0.01131042,88414.0,88401.0,0.02136]
[1767118603105,0.01131042,88414.0,88401.0,0.02076454]
[1767118604549,0.01131055,88413.0,88401.0,0.02076454]
[1767118604955,0.01131042,88414.0,88401.0,0.02076454]
[1767118605381,0.30985042,88414.0,88401.0,0.02076454]
[1767118606552,0.29854,88414.0,88401.0,0.02076454]
[1767118607882,0.30985042,88414.0,88401.0,0.02076454]
[1767118608550,0.30981068,88412.0,88401.0,0.02062454]
[1767118608752,0.01131247,88398.0,88382.0,0.2835981]
[1767118608974,0.2985,88394.0,88389.0,0.01136]
[1767118609167,0.30981298,88394.0,88389.0,0.01136]
[1767118609384,0.06787683,88396.0,88389.0,0.01136]
[1767118609587,0.01131272,88396.0,88389.0,0.01136]
[1767118609795,0.01131247,88398.0,88389.0,0.01136]
[1767118610230,0.36637455,88399.0,88389.0,0.01136]
[1767118610673,0.01131247,88398.0,88389.0,0.01136]
[1767118611317,0.36637455,88399.0,88389.0,0.01136]
[1767118611546,0.01131247,88398.0,88389.0,0.01136]
[1767118613476,0.2985,88399.0,88389.0,0.01136]
[1767118614149,0.30981234,88399.0,88389.0,0.01136]
[1767118614567,0.2985,88399.0,88389.0,0.01136]
[1767118615177,0.30981234,88399.0,88389.0,0.01136]
[1767118615838,0.01131247,88398.0,88389.0,0.01136]
[1767118616187,0.30981234,88399.0,88389.0,0.01136]
[1767118619302,0.01131221,88400.0,88389.0,0.01136]
[1767118619505,0.30981234,88399.0,88389.0,0.01136]
[1767118620121,0.2985,88399.0,88389.0,0.01136]
[1767118621392,0.01131247,88398.0,88389.0,0.01136]
[1767118621610,0.2985,88393.0,88389.0,0.00963944]
[1767118621817,0.2985,88393.0,88382.0,0.0001481]
[1767118621818,0.05657072,88385.0,88382.0,0.0001481]
[1767118622027,0.30981413,88385.0,88382.0,0.0001481]
[1767118622238,0.2985,88385.0,88382.0,0.0001481]
[1767118622449,0.28716349,88390.0,88382.0,0.0001481]
[1767118622679,0.27585,88390.0,88382.0,0.0001481]
[1767118626265,0.27585,88390.0,88382.0,1e-07]
[1767118626266,0.01131362,88389.0,88382.0,1e-07]
[1767118627042,0.27585,88388.0,88382.0,1e-07]
[1767118628999,0.275702,88388.0,88382.0,1e-07]
[1767118629469,0.01131336,88391.0,88382.0,1e-07]
[1767118629793,0.27585,88393.0,88382.0,1e-07]
[1767118629988,0.02267272,88396.0,88382.0,1e-07]
[1767118629989,0.82583662,88392.0,88391.0,0.00055]
[1767118630194,0.28716324,88392.0,88382.0,1e-07]
[1767118630600,0.83728585,88392.0,88382.0,1e-07]
[1767118630808,0.01131336,88391.0,88382.0,1e-07]
[1767118631006,0.83728585,88392.0,88382.0,1e-07]
[1767118631007,0.82597261,88392.0,88382.0,1e-07]
[1767118631424,0.83728585,88392.0,88382.0,1e-07]
[1767118631570,0.82597261,88392.0,88382.0,1e-07]
[1767118638688,0.27585,88392.0,88382.0,1e-07]
[1767118638888,0.82597261,88392.0,88382.0,1e-07]
[1767118644435,0.83728585,88392.0,88382.0,1e-07]
[1767118644648,0.82597261,88392.0,88382.0,1e-07]
[1767118647574,0.03094126,88416.0,88392.0,0.00055]
[1767118647781,0.06786638,88409.0,88393.0,0.30992]
[1767118647982,0.03485448,88408.0,88393.0,0.32123311]
[1767118648224,0.01131106,88409.0,88393.0,0.32123311]
[1767118648641,0.000148,88409.0,88395.0,0.29856]
[1767118648851,0.000148,88409.0,88399.0,0.01131234]
[1767118649034,0.000148,88409.0,88401.0,0.01131208]
[1767118650116,0.000148,88409.0,88400.0,0.01131221]
[1767118650326,0.000148,88409.0,88401.0,0.01131208]
[1767118650894,0.000148,88409.0,88399.0,0.36643363]
[1767118651111,0.000148,88409.0,88400.0,0.01131221]
[1767118652120,0.000148,88409.0,88401.0,0.01131208]
[1767118652322,0.000148,88409.0,88401.0,0.32123208]
[1767118653232,0.000148,88409.0,88401.0,0.30992]
[1767118653431,0.00972265,88416.0,88401.0,0.32123208]
[1767118653667,0.00972265,88416.0,88401.0,0.32132459]
[1767118654169,0.01131017,88416.0,88401.0,0.32132459]
[1767118654744,0.01131029,88415.0,88401.0,0.31001251]
[1767118655144,0.01131055,88413.0,88401.0,0.31001251]
[1767118655392,0.01131042,88414.0,88401.0,0.31001251]
[1767118655804,0.01131055,88413.0,88401.0,0.31001251]
[1767118657612,0.01131042,88414.0,88401.0,0.31001251]
[1767118659022,0.06786257,88414.0,88401.0,0.31001251]
[1767118659168,0.01131042,88414.0,88401.0,0.31001251]
[1767118659360,0.30359055,88413.0,88401.0,0.01130551]
[1767118659560,0.01131093,88410.0,88401.0,0.01130551]
[1767118659778,0.0113108,88411.0,88401.0,0.01130551]
[1767118659981,0.30359055,88413.0,88401.0,0.01130551]
[1767118660878,0.29228,88413.0,88401.0,0.01130551]
[1767118661746,0.30359055,88413.0,88401.0,0.01130551]
[1767118661954,0.29228,88413.0,88401.0,0.01130551]
[1767118663228,0.01136,88417.0,88394.0,0.06800409]
[1767118663229,0.01131221,88400.0,88394.0,0.0001267]
[1767118663356,0.55012261,88411.0,88385.0,0.2987134]
[1767118663357,0.29228,88393.0,88389.0,0.01136]
[1767118663571,0.30359311,88393.0,88389.0,0.010937]
[1767118663769,0.30359311,88393.0,88385.0,0.0001534]
[1767118663770,0.01131324,88392.0,88385.0,0.0001534]
[1767118664114,0.29228,88393.0,88385.0,0.0001534]
[1767118664547,0.30359311,88393.0,88385.0,0.0001534]
[1767118664741,0.29228,88393.0,88385.0,0.0001534]
[1767118665050,0.30359311,88393.0,88385.0,0.0001534]
[1767118665260,0.29228,88393.0,88385.0,0.0001534]
[1767118666374,0.01131362,88389.0,88385.0,2.64e-05]
[1767118666574,0.01131375,88388.0,88385.0,2.64e-05]
[1767118666797,0.28303,88388.0,88385.0,2.64e-05]
[1767118668578,0.01131362,88389.0,88388.0,0.000549]
[1767118668800,0.29434336,88391.0,88388.0,0.000549]
[1767118668986,0.01131375,88388.0,88385.0,2.64e-05]
[1767118669641,0.01131362,88389.0,88385.0,2.64e-05]
[1767118669843,0.01131349,88390.0,88385.0,2.64e-05]
[1767118670059,0.01131362,88389.0,88385.0,2.64e-05]
[1767118670270,0.29434349,88390.0,88385.0,2.64e-05]
[1767118670930,0.29434349,88390.0,88376.0,1e-08]
[1767118670931,0.3396058,88377.0,88376.0,1e-08]
[1767118671144,0.3396058,88377.0,88358.0,0.01136]
[1767118671145,0.05658266,88367.0,88358.0,0.01136]
[1767118671356,0.29445301,88367.0,88358.0,0.01136]
[1767118671567,0.29445301,88367.0,88349.0,0.28578]
[1767118671568,0.01131733,88360.0,88349.0,0.28578]
[1767118671780,0.01131733,88360.0,88352.0,0.0113169]
[1767118671980,0.01131695,88363.0,88352.0,0.0113169]
[1767118672186,0.01131669,88365.0,88352.0,0.0113169]
[1767118672408,0.01131656,88366.0,88352.0,0.0113169]
[1767118672607,0.01131669,88365.0,88352.0,0.01127526]
[1767118673346,0.01131695,88363.0,88352.0,0.011233]
[1767118673616,0.01131682,88364.0,88352.0,0.011233]
[1767118674345,0.01131669,88365.0,88352.0,0.01119119]
[1767118675174,0.01131682,88364.0,88352.0,0.01119119]
[1767118675495,0.01131669,88365.0,88352.0,0.01119119]
[1767118676967,0.01131682,88364.0,88352.0,0.01119119]
[1767118677403,0.01131669,88365.0,88352.0,0.01119119]
[1767118677608,0.29434656,88366.0,88352.0,0.01119119]
[1767118677786,0.29434656,88366.0,88352.0,0.02250955]
[1767118678751,0.28303,88366.0,88352.0,0.01119119]
[1767118679167,0.01131669,88365.0,88352.0,0.01119119]
[1767118679378,0.29434656,88366.0,88352.0,0.01119119]
[1767118679581,0.01131669,88365.0,88352.0,0.01119119]
[1767118679794,0.01131682,88364.0,88352.0,0.01119119]
[1767118679927,0.01131669,88365.0,88352.0,0.01119119]
[1767118680566,0.01131682,88364.0,88352.0,0.01119119]
[1767118681188,0.01131695,88363.0,88352.0,0.01119119]
[1767118681398,0.28303,88364.0,88352.0,0.01119119]
[1767118681603,0.29434682,88364.0,88352.0,0.01119119]
[1767118684130,0.28303,88364.0,88352.0,0.01119119]
[1767118684472,0.29434682,88364.0,88352.0,0.01119119]
[1767118685294,0.28303,88364.0,88352.0,0.01119119]
[1767118685463,0.29434682,88364.0,88352.0,0.01119119]
[1767118685629,0.28303,88364.0,88352.0,0.01119119]
[1767118686255,0.29543,88391.0,88364.0,0.000946]
[1767118686464,0.29543,88389.0,88380.0,0.55012261]
[1767118686674,0.01162289,88390.0,88380.0,0.28936477]
[1767118686675,0.0003094,88390.0,88380.0,0.28936477]
[1767118686882,0.30674183,88403.0,88385.0,0.01131413]
[1767118687090,0.30674183,88403.0,88391.0,0.27805]
[1767118687091,0.01131183,88403.0,88391.0,0.27805]
[1767118687298,0.01131196,88402.0,88391.0,0.27805]
[1767118687884,0.01131208,88401.0,88391.0,0.27805]
[1767118688183,0.01131221,88400.0,88391.0,0.27805]
[1767118688300,0.000153,88391.0,88385.0,0.01136]
[1767118688501,0.01131324,88392.0,88385.0,0.01136]
[1767118688710,0.29543,88393.0,88380.0,0.01131477]
[1767118688926,0.01136,88395.0,88381.0,0.01131464]
[1767118689372,0.30679,88395.0,88381.0,0.01131464]
[1767118689597,0.30679,88395.0,88382.0,0.01131452]
[1767118689773,0.30679,88395.0,88380.0,0.01131477]
[1767118690046,0.30679,88395.0,88381.0,0.01131464]
[1767118690690,0.30679,88395.0,88382.0,0.01131452]
[1767118691139,0.30679,88395.0,88381.0,0.01131464]
[1767118691362,0.30679,88395.0,88382.0,0.01131452]
[1767118691624,0.30679,88395.0,88381.0,0.01131464]
[1767118691848,0.30679,88395.0,88382.0,0.01131452]
[1767118692391,0.30679,88395.0,88383.0,0.01131439]
[1767118692635,0.55006634,88393.0,88379.0,0.01136]
[1767118692984,0.05657027,88386.0,88379.0,0.00536]
[1767118693187,0.29543,88383.0,88379.0,0.00536]
[1767118694178,0.29543,88383.0,88371.0,0.06789528]
[1767118694407,0.29543,88383.0,88369.0,0.28936618]
[1767118694408,0.30674439,88383.0,88375.0,0.01136]
[1767118694601,0.29543,88383.0,88369.0,0.27805]
[1767118694805,0.29543,88383.0,88372.0,0.01136]
[1767118695248,0.31810375,88388.0,88383.0,0.000946]
[1767118695463,0.30679,88388.0,88383.0,0.000946]
[1767118695663,0.31810375,88388.0,88373.0,0.01131567]
[1767118696523,0.306394,88388.0,88375.0,0.01131541]
[1767118696774,0.010964,88388.0,88376.0,0.30200528]
[1767118697160,0.010964,88388.0,88376.0,0.29069]
[1767118699367,0.010964,88388.0,88376.0,0.30200528]
[1767118699578,0.010964,88388.0,88376.0,0.29069]
[1767118701633,0.02227775,88388.0,88374.0,0.01131554]
[1767118701840,0.010964,88388.0,88374.0,0.01131554]
[1767118702524,0.010964,88388.0,88377.0,0.29069]
[1767118705069,0.010964,88388.0,88377.0,0.30200516]
[1767118705212,0.010964,88388.0,88377.0,0.29069]
[1767118705640,0.02227775,88388.0,88377.0,0.29069]
[1767118706048,0.010964,88388.0,88377.0,0.29069]
[1767118709377,0.010964,88388.0,88377.0,0.30200516]
[1767118710114,0.010964,88388.0,88377.0,0.29069]
[1767118710321,0.010964,88388.0,88377.0,0.26434187]
[1767118715860,0.010964,88388.0,88378.0,0.55006634]
[1767118716194,0.02267298,88394.0,88381.0,0.29069]
[1767118716376,0.01136,88394.0,88382.0,0.01136]
[1767118718043,0.02267298,88394.0,88382.0,0.01136]
[1767118718240,0.01136,88394.0,88382.0,0.01136]
[1767118718444,0.01131311,88393.0,88382.0,0.01136]
[1767118718646,0.28338311,88393.0,88382.0,0.01136]
[1767118719579,0.01131324,88392.0,88382.0,0.01136]
[1767118719940,0.28338311,88393.0,88382.0,0.01136]
[1767118721165,0.0565662,88392.0,88382.0,0.01136]
[1767118721523,0.01131336,88391.0,88382.0,0.01136]
[1767118721948,0.01131388,88387.0,88382.0,0.01136]
[1767118722144,0.01131413,88385.0,88382.0,0.01136]
[1767118722349,0.01131413,88385.0,88382.0,0.010811]
[1767118722944,0.011314,88386.0,88382.0,0.010811]
[1767118723142,0.01131388,88387.0,88382.0,0.010811]
[1767118723385,0.011314,88386.0,88382.0,0.010811]
[1767118724089,0.01131413,88385.0,88382.0,0.010811]
[1767118724282,0.01131388,88387.0,88382.0,0.010811]
[1767118724463,0.01131375,88388.0,88382.0,0.010811]
[1767118726110,0.01131362,88389.0,88382.0,0.010811]
[1767118726886,0.28338349,88390.0,88382.0,0.010811]
[1767118728373,0.01131362,88389.0,88382.0,0.010811]
[1767118728573,0.27207,88390.0,88382.0,0.010811]
[1767118728831,0.01131362,88389.0,88382.0,0.010811]
[1767118729520,0.0565705,88386.0,88382.0,0.010811]
[1767118729678,0.01131413,88385.0,88382.0,0.010811]
[1767118732406,0.0678831,88388.0,88382.0,0.010811]
[1767118732610,0.01131388,88387.0,88382.0,0.010811]
[1767118733441,0.011314,88386.0,88382.0,0.010811]
[1767118734103,0.01131413,88385.0,88382.0,0.010811]
[1767118734297,0.011314,88386.0,88382.0,0.010811]
[1767118734765,0.01131388,88387.0,88382.0,0.010811]
[1767118735205,0.06788191,88389.0,88382.0,0.010811]
[1767118735431,0.01131375,88388.0,88382.0,0.010811]
[1767118735690,0.0565673,88391.0,88388.0,0.000549]
[1767118735924,0.0565673,88391.0,88388.0,0.00028174]
[1767118735925,0.01131362,88389.0,88388.0,0.00028174]
[1767118736143,0.01131362,88389.0,88382.0,0.010811]
[1767118736784,0.01131349,88390.0,88382.0,0.010811]
[1767118737215,0.01131349,88390.0,88378.0,0.28844]
[1767118737216,0.01131375,88388.0,88378.0,0.28844]
[1767118737440,0.06788174,88389.0,88388.0,0.000282]
[1767118737638,0.0678811,88390.0,88378.0,0.28844]
[1767118737954,0.01131375,88388.0,88378.0,0.28844]
[1767118738596,0.01131388,88387.0,88378.0,0.28844]
[1767118739443,0.01131375,88388.0,88378.0,0.28844]
[1767118739598,0.01131388,88387.0,88378.0,0.28844]
[1767118739984,0.01131375,88388.0,88378.0,0.28844]
[1767118740184,0.01131375,88388.0,88379.0,0.01136]
[1767118741215,0.01131388,88387.0,88379.0,0.01136]
[1767118741419,0.01131375,88388.0,88379.0,0.01136]
[1767118741758,0.01131388,88387.0,88379.0,0.01136]
[1767118742134,0.06788217,88389.0,88379.0,0.01136]
[1767118742362,0.06787885,88393.0,88380.0,0.27369]
[1767118742567,0.01131234,88399.0,88393.0,0.00055]
[1767118742908,0.01131234,88399.0,88380.0,0.01131477]
[1767118742909,0.00010666,88401.0,88390.0,0.83506983]
[1767118743247,0.00010666,88401.0,88389.0,0.01136]